bitfinex-derivatives/quotes_SOLF0:USTF0_20250609
["timestamp","ask_amount","ask_price","bid_price","bid_amount"]
[1749474906489,0.04654309,155.12,155.09,5.07526134]
[1749474907298,0.04654309,155.12,155.1,6.4441]
[1749474908093,0.04654309,155.12,155.09,11.51986134]
[1749474908793,0.04654309,155.12,155.09,6.4446]
[1749474908991,6.49024309,155.12,155.1,6.4443]
[1749474909296,0.04654309,155.12,155.1,6.4443]
[1749474909499,6.49014309,155.12,155.1,6.4443]
[1749474909999,0.04654309,155.12,155.1,6.4443]
[1749474910195,6.02529487,155.17,155.11,37.13526134]
[1749474910498,94.5397412,155.18,155.11,37.13526134]
[1749474910890,6.02529487,155.19,155.13,5.07526134]
[1749474911095,6.02529487,155.2,155.13,5.07526134]
[1749474911397,6.48807305,155.18,155.16,6.4418]
[1749474911896,6.48807305,155.18,155.15,38.54504342]
[1749474916314,0.04707305,155.18,155.16,6.4418]
[1749474916503,0.04707305,155.18,155.15,32.10294342]
[1749474916703,0.04707305,155.18,155.15,37.17820476]
[1749474916899,0.04707305,155.18,155.16,6.4416]
[1749474918205,0.04707305,155.18,155.17,6.4414]
[1749474918502,0.04707305,155.18,155.15,37.17820476]
[1749474918703,0.04707305,155.18,155.16,6.4416]
[1749474919504,6.48807305,155.18,155.15,43.62030476]
[1749474920815,6.48807305,155.18,155.16,6.4418]
[1749474921112,0.04707305,155.18,155.16,6.4418]
[1749474922409,0.04707305,155.18,155.17,6.4414]
[1749474922613,0.04707305,155.18,155.17,5.07526134]
[1749474922812,0.04707305,155.18,155.15,37.17820476]
[1749474923013,6.48827305,155.18,155.15,43.62020476]
[1749474924111,6.4414,155.17,155.15,43.62020476]
[1749474924319,0.04707305,155.18,155.15,32.10294342]
[1749474924911,6.4418,155.16,155.15,32.10294342]
[1749474925718,6.4416,155.17,155.15,38.54514342]
[1749474926018,6.4416,155.17,155.15,32.10294342]
[1749474927222,6.48827305,155.18,155.15,38.54494342]
[1749474927920,6.48827305,155.18,155.15,32.10294342]
[1749474928120,6.48827305,155.18,155.15,38.54504342]
[1749474929316,6.48827305,155.18,155.16,6.4418]
[1749474930819,6.48827305,155.18,155.15,38.54504342]
[1749474932222,6.48827305,155.18,155.16,6.4418]
[1749474933124,0.04707305,155.18,155.16,6.4418]
[1749474933724,6.48807305,155.18,155.16,6.4418]
[1749474935528,6.48807305,155.18,155.15,38.54504342]
[1749474935924,6.48807305,155.18,155.15,32.10294342]
[1749474936424,0.04707305,155.18,155.15,32.10294342]
[1749474936625,0.04707305,155.18,155.16,5.07526134]
[1749474937824,0.04707305,155.18,155.17,6.4414]
[1749474938525,0.04707305,155.18,155.17,11.51666134]
[1749474939425,0.04707305,155.18,155.17,5.07526134]
[1749474940628,0.04707305,155.18,155.17,11.51666134]
[1749474946529,0.04707305,155.18,155.15,37.17820476]
[1749474947527,0.04707305,155.18,155.16,6.4418]
[1749474947928,0.04707305,155.18,155.15,37.17820476]
[1749474948131,6.48827305,155.18,155.15,43.62020476]
[1749474948531,0.04707305,155.18,155.15,37.17820476]
[1749474948729,0.04707305,155.18,155.16,6.4416]
[1749474950427,0.04707305,155.18,155.17,6.4414]
[1749474965342,12.62957426,155.25,155.16,12.24982268]
[1749474965537,12.62957426,155.25,155.16,2.0993]
[1749474965734,12.62957426,155.25,155.18,5.07526134]
[1749474965939,6.4391,155.23,155.2,6.4402]
[1749474966239,6.4799801,155.23,155.2,6.48600534]
[1749474968234,0.0408801,155.23,155.2,0.04580534]
[1749474968940,6.4396,155.22,155.2,0.04580534]
[1749474969332,12.50235436,155.23,155.2,6.48590534]
[1749474969731,6.4799801,155.23,155.2,6.48590534]
[1749474969938,0.0408801,155.23,155.21,5.07526134]
[1749474970545,0.0408801,155.23,155.21,11.51466134]
[1749474971348,0.0408801,155.23,155.22,6.4393]
[1749474971755,0.0408801,155.23,155.2,0.04580534]
[1749474972352,6.4395,155.22,155.2,0.04580534]
[1749474972649,0.0408801,155.23,155.2,0.04580534]
[1749474972850,6.4800801,155.23,155.2,6.48580534]
[1749474973046,6.4800801,155.23,155.2,0.04580534]
[1749474973449,6.4800801,155.23,155.2,6.48560534]
[1749474975254,0.0408801,155.23,155.2,0.04580534]
[1749474975749,6.4396,155.22,155.2,0.04580534]
[1749474976751,6.4799801,155.23,155.2,0.04580534]
[1749474976948,0.0408801,155.23,155.2,0.04580534]
[1749474977352,0.0408801,155.23,155.22,6.4393]
[1749474979156,0.0408801,155.23,155.21,5.07526134]
[1749474979548,0.0408801,155.23,155.21,11.51476134]
[1749474979750,0.0408801,155.23,155.2,0.04580534]
[1749474980150,6.4799801,155.23,155.2,6.48570534]
[1749474980348,0.0408801,155.23,155.2,0.04580534]
[1749474980748,0.0408801,155.23,155.2,6.48580534]
[1749474981358,6.4393,155.22,155.2,6.48580534]
[1749474981760,6.4393,155.22,155.2,0.04580534]
[1749474981957,6.4397,155.21,155.2,0.04580534]
[1749474986160,11.51496134,155.21,155.2,0.04580534]
[1749474986361,17.5338147,155.21,155.2,0.04580534]
[1749474987960,17.5338147,155.21,155.09,2.2083]
[1749474987961,43.53526134,155.21,155.06,8.00612871]
[1749474988166,43.53526134,155.21,155.04,12.8936]
[1749474988167,5.07526134,155.16,155.08,5.07526134]
[1749474988659,6.4421,155.16,155.13,6.4428]
[1749474988854,5.07526134,155.18,155.13,6.4428]
[1749474989056,6.4422,155.16,155.14,0.04737079]
[1749474990162,0.0492414,155.17,155.14,0.04737079]
[1749474990760,6.4418,155.16,155.14,6.48987079]
[1749474992763,6.4907414,155.17,155.14,6.48987079]
[1749474993261,0.0492414,155.17,155.15,6.442]
[1749474993563,0.0492414,155.17,155.14,0.04737079]
[1749474993866,0.0492414,155.17,155.15,6.442]
[1749474994866,0.0492414,155.17,155.16,6.4418]
[1749474995369,0.0492414,155.17,155.15,6.4421]
[1749474996467,0.0492414,155.17,155.14,6.48987079]
[1749474996769,6.4906414,155.17,155.14,6.48987079]
[1749474997970,0.0492414,155.17,155.14,6.48987079]
[1749475002977,6.4907414,155.17,155.14,6.48987079]
[1749475004774,0.0492414,155.17,155.15,6.4422]
[1749475005276,0.0492414,155.17,155.16,32.02]
[1749475007279,0.0492414,155.17,155.16,38.4618]
[1749475011674,0.0492414,155.17,155.16,32.02]
[1749475012986,0.0492414,155.17,155.16,38.4618]
[1749475019183,0.0492414,155.17,155.16,41.70456348]
[1749475021993,0.0492414,155.17,155.16,32.02]
[1749475022687,6.4906414,155.17,155.16,32.02]
[1749475029390,9.73340488,155.17,155.16,32.02]
[1749475032998,6.4422,155.15,155.14,0.04737079]
[1749475033201,9.68496348,155.15,155.14,0.04737079]
[1749475037090,15.69624014,155.15,155.14,0.04737079]
[1749475037301,9.68496348,155.15,155.14,0.04737079]
[1749475037899,15.69624014,155.15,155.14,0.04737079]
[1749475038099,9.68496348,155.15,155.14,0.04737079]
[1749475038900,6.4422,155.15,155.14,0.04737079]
[1749475039103,9.68496348,155.15,155.14,0.04737079]
[1749475045309,9.68496348,155.15,155.14,7.079e-05]
[1749475063624,15.68754582,155.15,155.14,7.079e-05]
[1749475065726,9.68496348,155.15,155.14,7.079e-05]
[1749475066131,6.4443,155.1,155.09,32.0]
[1749475066325,3.24276348,155.1,155.06,35.24276348]
[1749475066530,3.24276348,155.08,155.06,32.0]
[1749475066725,6.4456,155.07,155.06,32.0]
[1749475067726,9.73033176,155.08,155.06,32.0]
[1749475067927,6.48756828,155.08,155.06,32.0]
[1749475068229,6.48756828,155.08,155.06,38.4459]
[1749475069537,0.04226828,155.08,155.07,9.68836348]
[1749475070630,0.04226828,155.08,155.06,35.24276348]
[1749475070832,0.04226828,155.08,155.06,32.0]
[1749475071936,6.4456,155.07,155.06,32.0]
[1749475084654,9.68836348,155.07,155.06,32.0]
[1749475085149,6.4456,155.07,155.06,32.0]
[1749475086246,9.73033176,155.08,155.06,32.0]
[1749475086551,3.28503176,155.08,155.05,0.04913041]
[1749475086748,6.4456,155.07,155.05,0.04913041]
[1749475087250,6.446,155.06,155.05,0.04913041]
[1749475089345,9.68876348,155.06,155.05,0.04913041]
[1749475089657,6.4468,155.04,155.03,31.98]
[1749475089845,9.68956348,155.04,155.03,31.98]
[1749475090045,9.68956348,155.04,155.01,2.0978]
[1749475090046,3.24276348,155.04,155.01,2.0978]
[1749475090251,6.4476,155.02,155.01,2.0978]
[1749475090753,6.448,155.01,155.0,403.24]
[1749475091844,6.448,155.01,155.0,31.98]
[1749475092345,6.4485,155.0,154.98,3.24276348]
[1749475092554,3.29020124,155.03,154.99,3.24276348]
[1749475092740,0.04743776,155.03,155.0,9.69086348]
[1749475092942,0.04743776,155.03,155.02,3.24276348]
[1749475093141,32.0,155.09,155.02,3.24276348]
[1749475093142,3.24276348,155.07,155.02,3.24276348]
[1749475093345,6.4462,155.06,155.03,3.24276348]
[1749475093543,3.24276348,155.07,155.03,3.24276348]
[1749475094152,6.4466,155.05,155.03,3.28458977]
[1749475094656,6.4466,155.05,155.03,9.73168977]
[1749475095253,6.4466,155.05,155.03,0.04182629]
[1749475096151,0.04879405,155.07,155.04,6.4468]
[1749475096452,6.446,155.06,155.04,6.4468]
[1749475096650,0.04879405,155.07,155.03,0.04182629]
[1749475097050,6.49459405,155.07,155.03,0.04182629]
[1749475097457,6.49459405,155.07,155.04,6.4467]
[1749475099455,6.49459405,155.07,155.03,0.04182629]
[1749475099656,0.04879405,155.07,155.03,5.11614196]
[1749475099851,0.04879405,155.07,155.03,7.24014196]
[1749475100052,6.49459405,155.07,155.04,6.4465]
[1749475100247,6.49459405,155.07,155.05,32.0]
[1749475101153,6.446,155.06,155.05,32.0]
[1749475104564,6.49449405,155.07,155.05,32.0]
[1749475104856,0.04879405,155.07,155.05,32.0]
[1749475105051,6.446,155.06,155.05,32.0]
[1749475113163,6.446,155.06,155.04,6.4468]
[1749475113364,6.4464,155.05,155.03,2.16582629]
[1749475113565,0.04879405,155.07,155.03,2.16582629]
[1749475113867,6.4468,155.04,155.03,2.16582629]
[1749475114166,6.4468,155.04,155.03,0.04182629]
[1749475115273,6.4468,155.04,155.03,3.28990456]
[1749475115658,9.69487827,155.04,155.03,0.04182629]
[1749475117465,11.52501084,155.04,155.03,0.04182629]
[1749475117671,6.4485,155.0,154.99,32.0]
[1749475126582,6.45,154.97,154.96,31.98]
[1749475128487,5.07821084,154.98,154.92,31.98]
[1749475128682,0.04274766,154.97,154.92,31.98]
[1749475129595,6.4512,154.94,154.92,31.98]
[1749475129888,0.04274766,154.97,154.93,6.4514]
[1749475130084,0.04274766,154.97,154.92,31.98]
[1749475130085,6.49264766,154.97,154.92,31.98]
[1749475130679,6.49264766,154.97,154.94,6.4509]
[1749475136496,0.04274766,154.97,154.94,6.4509]
[1749475137394,6.49254766,154.97,154.94,6.4509]
[1749475137595,0.04274766,154.97,154.94,6.4509]
[1749475137996,6.49264766,154.97,154.94,6.4509]
[1749475139895,6.4506,154.95,154.93,6.4513]
[1749475140096,0.04274766,154.97,154.93,5.07821084]
[1749475140297,2.3085,155.03,154.95,5.07821084]
[1749475140596,6.4479,155.02,154.99,6.4489]
[1749475141186,6.4479,155.02,155.0,6.4484]
[1749475141387,6.49295421,155.03,155.0,6.4484]
[1749475141592,0.04545421,155.03,155.0,6.4484]
[1749475142001,0.04545421,155.03,155.0,38.4284]
[1749475142692,0.04545421,155.03,155.01,6.4478]
[1749475142898,0.04545421,155.03,155.0,31.98]
[1749475143396,0.04545421,155.03,155.01,6.4477]
[1749475143798,0.04545421,155.03,155.0,31.98]
[1749475145896,6.448,155.01,155.0,31.98]
[1749475148108,6.4478,155.02,155.0,31.98]
[1749475148300,0.04545421,155.03,155.0,31.98]
[1749475148692,6.448,155.01,155.0,31.98]
[1749475151902,6.4477,155.02,155.0,31.98]
[1749475152304,5.07821084,155.01,154.92,31.96]
[1749475152607,5.07821084,155.0,154.92,37.03821084]
[1749475153000,6.4483,155.01,154.94,5.07821084]
[1749475153304,0.04935943,154.99,154.94,5.07821084]
[1749475153700,6.4493,154.98,154.95,6.4503]
[1749475153901,6.4493,154.98,154.96,31.96]
[1749475155019,6.4493,154.98,154.96,38.41]
[1749475156920,6.49845943,154.99,154.96,38.41]
[1749475157322,6.49845943,154.99,154.97,6.4496]
[1749475159021,6.4494,154.98,154.96,38.41]
[1749475159821,0.04935943,154.99,154.96,37.03821084]
[1749475160409,0.04935943,154.99,154.97,2.0957]
[1749475160612,0.04935943,154.99,154.98,6.4493]
[1749475162124,0.04935943,154.99,154.98,11.52751084]
[1749475164018,5.07821084,155.06,155.02,6.4473]
[1749475164213,6.00154403,155.08,155.02,5.07821084]
[1749475164417,11.07975487,155.11,155.02,5.07821084]
[1749475164617,6.4458,155.07,155.05,6.4464]
[1749475166617,6.49170415,155.08,155.05,6.4464]
[1749475167321,6.4457,155.07,155.05,6.4464]
[1749475167924,6.4457,155.07,155.04,38.45472692]
[1749475169225,6.4457,155.07,155.05,6.4464]
[1749475169423,6.4457,155.07,155.04,32.00812692]
[1749475169824,6.4457,155.07,155.04,38.45462692]
[1749475170130,0.04640415,155.08,155.04,38.45462692]
[1749475170330,0.04640415,155.08,155.04,32.00812692]
[1749475171132,6.4464,155.05,155.04,32.00812692]
[1749475172532,0.04640415,155.08,155.04,32.00812692]
[1749475172930,0.04640415,155.08,155.04,38.45472692]
[1749475173130,6.446,155.06,155.04,32.00812692]
[1749475173726,6.4459,155.07,155.04,32.00812692]
[1749475174330,6.446,155.06,155.04,32.00812692]
[1749475174632,6.446,155.06,155.04,38.45472692]
[1749475175932,6.446,155.06,155.04,32.00812692]
[1749475177434,6.4464,155.05,155.04,32.00812692]
[1749475181437,6.4461,155.06,155.04,32.00812692]
[1749475182635,6.4458,155.07,155.04,38.45492692]
[1749475182936,0.04640415,155.08,155.04,38.45492692]
[1749475184034,6.4462,155.06,155.04,38.45492692]
[1749475186046,0.04640415,155.08,155.04,38.45492692]
[1749475186342,0.04640415,155.08,155.05,6.4463]
[1749475186841,6.4456,155.07,155.04,38.45472692]
[1749475187039,6.4456,155.07,155.04,32.00812692]
[1749475187236,0.04640415,155.08,155.04,32.00812692]
[1749475187440,6.49180415,155.08,155.05,6.4461]
[1749475191541,6.49180415,155.08,155.06,6.4459]
[1749475192046,6.49180415,155.08,155.05,6.4462]
[1749475192547,6.4456,155.07,155.05,6.4462]
[1749475192745,0.04640415,155.08,155.05,6.4462]
[1749475192946,6.49180415,155.08,155.05,6.4462]
[1749475193849,6.4456,155.07,155.05,6.4462]
[1749475194040,0.04640415,155.08,155.05,6.4463]
[1749475194545,6.49180415,155.08,155.05,6.4463]
[1749475194939,0.04640415,155.08,155.05,6.4463]
[1749475195340,6.4458,155.07,155.04,38.45462692]
[1749475196248,6.446,155.06,155.04,38.45462692]
[1749475198945,6.4464,155.05,155.04,32.00812692]
[1749475200858,6.4464,155.05,155.04,0.04812692]
[1749475204555,6.44,155.05,154.95,8.03058845]
[1749475204756,5.07821084,155.06,154.96,31.96]
[1749475204757,5.99310225,155.06,154.96,31.96]
[1749475205057,6.4476,155.03,154.99,6.4485]
[1749475205356,5.07821084,155.05,155.0,31.96]
[1749475205557,6.49022095,155.04,155.01,6.4478]
[1749475205857,0.04322095,155.04,155.0,31.96]
[1749475206058,0.04322095,155.04,155.02,6.4474]
[1749475206863,0.04322095,155.04,155.0,31.96]
[1749475207355,0.04322095,155.04,155.03,6.4472]
[1749475211465,0.04322095,155.04,155.03,11.52541084]
[1749475212359,2.095e-05,155.04,155.03,11.52541084]
[1749475215158,2.095e-05,155.04,155.03,6.4472]
[1749475220371,2.095e-05,155.04,155.03,38.3872]
[1749475224273,2.095e-05,155.04,155.03,43.46541084]
[1749475227775,6.4445,155.1,155.08,6.445]
[1749475229570,6.4877084,155.11,155.08,6.445]
[1749475229770,0.0436084,155.11,155.08,6.445]
[1749475230671,6.4445,155.1,155.08,6.445]
[1749475232276,6.4445,155.1,155.07,38.42907904]
[1749475232576,6.4445,155.1,155.07,31.98367904]
[1749475232781,6.4445,155.1,155.07,38.42907904]
[1749475233278,6.4447,155.09,155.08,3.24658085]
[1749475233480,3.29018925,155.11,155.07,35.23025989]
[1749475234479,3.29018925,155.11,155.07,41.67565989]
[1749475235179,6.4448,155.09,155.07,41.67565989]
[1749475243986,6.4446,155.1,155.07,41.67565989]
[1749475245283,6.4446,155.1,155.08,6.4451]
[1749475246283,6.4446,155.1,155.07,41.67565989]
[1749475247275,6.4448,155.09,155.07,41.67565989]
[1749475248785,6.4445,155.1,155.08,6.4452]
[1749475251686,6.4447,155.09,155.07,41.67565989]
[1749475252482,6.4447,155.09,155.07,38.42907904]
[1749475252682,6.4447,155.09,155.07,41.67565989]
[1749475260193,6.4448,155.09,155.07,35.23025989]
[1749475260892,6.4448,155.09,155.07,41.67565989]
[1749475261193,9.69118085,155.1,155.07,35.23025989]
[1749475261395,6.4446,155.1,155.07,41.67565989]
[1749475261887,6.03671065,155.11,155.07,35.23025989]
[1749475262094,9.2832915,155.11,155.07,35.23025989]
[1749475262290,9.2832915,155.11,155.08,6.4452]
[1749475262594,6.4446,155.1,155.08,6.4452]
[1749475265188,6.4448,155.09,155.07,41.67565989]
[1749475267596,12.43760225,155.1,155.07,41.67565989]
[1749475268801,12.43760225,155.1,155.08,6.4451]
[1749475269098,6.4445,155.1,155.08,6.4451]
[1749475269300,12.43760225,155.1,155.08,6.4451]
[1749475271195,6.4445,155.1,155.08,6.4451]
[1749475271396,12.47782814,155.1,155.08,6.4451]
[1749475271901,12.47782814,155.1,155.07,35.23025989]
[1749475272202,6.4445,155.1,155.07,35.23025989]
[1749475272704,6.4445,155.1,155.08,6.4451]
[1749475273202,12.47782814,155.1,155.08,6.4451]
[1749475274203,6.4445,155.1,155.08,6.4451]
[1749475275998,6.4445,155.1,155.07,41.67565989]
[1749475277010,6.4445,155.1,155.08,6.4451]
[1749475286021,6.4448,155.09,155.08,6.4451]
[1749475286222,6.07693654,155.11,155.08,6.4451]
[1749475286418,0.0436084,155.11,155.08,6.4451]
[1749475286619,6.4445,155.1,155.08,6.4451]
[1749475288723,6.445,155.09,155.07,38.42917904]
[1749475289817,6.4445,155.1,155.08,6.4452]
[1749475290729,12.51980851,155.11,155.09,6.4448]
[1749475291118,6.4877084,155.11,155.09,6.4448]
[1749475292728,12.51980851,155.11,155.09,6.4448]
[1749475294325,0.0436084,155.11,155.1,3.24652298]
[1749475294519,0.0436084,155.11,155.09,3.24652298]
[1749475294723,0.0436084,155.11,155.1,3.24652298]
[1749475294920,0.0436084,155.11,155.1,9.69082298]
[1749475297028,0.0436084,155.11,155.1,3.24652298]
[1749475298131,6.4875084,155.11,155.1,3.24652298]
[1749475299327,6.4445,155.1,155.09,3.24652298]
[1749475299525,6.4445,155.1,155.08,35.16652298]
[1749475300331,6.4445,155.1,155.08,41.61172298]
[1749475300529,6.4877084,155.11,155.08,41.61172298]
[1749475300732,0.0436084,155.11,155.08,41.61172298]
[1749475300930,0.0436084,155.11,155.08,38.3652]
[1749475301235,6.4445,155.1,155.08,41.61172298]
[1749475301838,6.4448,155.09,155.08,31.92]
[1749475305831,6.4444,155.1,155.08,31.92]
[1749475306237,6.4444,155.1,155.08,35.16652298]
[1749475306433,6.06694872,155.11,155.08,35.16652298]
[1749475306640,0.0436084,155.11,155.1,3.24652298]
[1749475306935,6.4446,155.1,155.08,35.16652298]
[1749475307733,6.4448,155.09,155.08,35.16652298]
[1749475307933,6.4448,155.09,155.08,31.92]
[1749475308534,6.4445,155.1,155.08,31.92]
[1749475308934,9.3134717,155.11,155.08,31.92]
[1749475309234,6.4443,155.1,155.08,31.92]
[1749475309434,9.3134717,155.11,155.08,31.92]
[1749475309729,6.4447,155.1,155.08,31.92]
[1749475312841,6.4447,155.1,155.07,6.48897904]
[1749475313036,6.4448,155.09,155.07,6.48897904]
[1749475314942,6.4452,155.08,155.07,0.04367904]
[1749475315442,6.445,155.09,155.07,6.48927904]
[1749475316749,6.445,155.09,155.07,0.04367904]
[1749475319049,6.4452,155.08,155.07,0.04367904]
[1749475322153,6.4452,155.08,155.07,3.29020202]
[1749475323453,6.4448,155.09,155.07,3.29020202]
[1749475323852,9.31580562,155.11,155.07,9.73580202]
[1749475324355,6.4445,155.1,155.07,3.29020202]
[1749475324555,6.06928264,155.11,155.09,3.24652298]
[1749475324748,0.0436084,155.11,155.1,3.24652298]
[1749475324948,0.0436084,155.11,155.1,9.69082298]
[1749475326952,0.0436084,155.11,155.1,41.59082298]
[1749475328357,6.02567424,155.15,155.14,6.4427]
[1749475328560,6.02567424,155.17,155.14,3.24652298]
[1749475328953,12.46737424,155.17,155.14,9.68892298]
[1749475329154,12.46737424,155.17,155.15,3.24652298]
[1749475329758,6.02567424,155.17,155.15,3.24652298]
[1749475330058,6.02567424,155.17,155.14,6.48855873]
[1749475330059,6.02567424,155.17,155.14,9.73508171]
[1749475330556,12.46747424,155.17,155.14,9.73508171]
[1749475330756,6.4418,155.17,155.14,9.73508171]
[1749475331358,12.46747424,155.17,155.14,9.73508171]
[1749475331761,6.4418,155.17,155.14,9.73508171]
[1749475331958,6.442,155.16,155.14,3.29268171]
[1749475333262,9.31627864,155.18,155.14,3.29268171]
[1749475333263,6.4423,155.15,155.14,0.04615873]
[1749475334156,6.06975566,155.18,155.14,6.48855873]
[1749475334362,0.04408142,155.18,155.15,3.24652298]
[1749475334760,6.4417,155.17,155.15,3.24652298]
[1749475335262,0.04408142,155.18,155.16,3.24652298]
[1749475335565,6.48538142,155.18,155.16,3.24652298]
[1749475335865,0.04408142,155.18,155.16,3.24652298]
[1749475336066,6.4414,155.17,155.16,3.24652298]
[1749475337467,0.04408142,155.18,155.15,3.24652298]
[1749475338365,6.4416,155.17,155.14,38.34865873]
[1749475338565,6.4416,155.17,155.15,3.24652298]
[1749475341373,6.4418,155.16,155.15,3.24652298]
[1749475342866,6.4423,155.15,155.14,35.15268171]
[1749475343071,9.68882298,155.15,155.14,31.90615873]
[1749475343268,3.24652298,155.15,155.11,31.86]
[1749475343566,6.4448,155.09,155.08,31.86]
[1749475343772,9.69132298,155.09,155.08,31.86]
[1749475345273,6.4448,155.09,155.08,31.86]
[1749475346877,6.4448,155.09,155.07,0.04933086]
[1749475346878,6.4452,155.08,155.07,0.04933086]
[1749475358889,0.04374376,155.1,155.07,0.04933086]
[1749475360195,6.48834376,155.1,155.07,0.04933086]
[1749475360793,6.4449,155.09,155.07,0.04933086]
[1749475361595,6.4452,155.08,155.07,0.04933086]
[1749475361991,0.04374376,155.1,155.07,0.04933086]
[1749475362492,0.04374376,155.1,155.07,6.49433086]
[1749475363698,6.48764376,155.1,155.07,6.49433086]
[1749475364000,0.04374376,155.1,155.07,6.49433086]
[1749475367093,0.04374376,155.1,155.08,6.4445]
[1749475373308,0.04374376,155.1,155.09,3.24580818]
[1749475376706,6.48734376,155.1,155.09,3.24580818]
[1749475377509,0.04374376,155.1,155.09,3.24580818]
[1749475377809,0.04374376,155.1,155.09,9.68990818]
[1749475380712,6.4417,155.15,155.13,6.4421]
[1749475380917,5.9779008,155.19,155.14,3.24580818]
[1749475381111,4.4308,155.2,155.17,3.24580818]
[1749475381311,2.1328,155.2,155.17,3.24580818]
[1749475381509,6.4405,155.18,155.17,3.24580818]
[1749475382514,6.4405,155.18,155.16,3.28938779]
[1749475383215,6.4405,155.18,155.16,0.04357961]
[1749475384416,6.4408,155.17,155.16,0.04357961]
[1749475384917,0.04799157,155.19,155.16,0.04357961]
[1749475385119,6.4404,155.18,155.16,0.04357961]
[1749475385313,0.04799157,155.19,155.16,0.04357961]
[1749475386211,6.4408,155.17,155.16,0.04357961]
[1749475386919,6.4406,155.18,155.16,0.04357961]
[1749475387918,0.04799157,155.19,155.17,5.06671605]
[1749475388119,0.04799157,155.19,155.16,0.04357961]
[1749475388320,6.4408,155.17,155.16,0.04357961]
[1749475397323,6.4408,155.17,155.16,5.11029566]
[1749475397528,6.4405,155.18,155.16,5.11029566]
[1749475398624,6.48799157,155.19,155.16,5.11029566]
[1749475399323,6.48799157,155.19,155.16,11.55119566]
[1749475399519,0.04799157,155.19,155.16,5.11029566]
[1749475400027,0.04799157,155.19,155.17,6.4408]
[1749475400925,6.48809157,155.19,155.17,6.4408]
[1749475403125,6.48809157,155.19,155.16,11.55129566]
[1749475403521,6.48809157,155.19,155.16,6.48457961]
[1749475403721,6.4403,155.18,155.16,11.55129566]
[1749475403925,0.04799157,155.19,155.16,0.04357961]
[1749475404427,6.4408,155.17,155.16,0.04357961]
[1749475420640,6.4407,155.18,155.16,0.04357961]
[1749475420838,0.04799157,155.19,155.16,0.04357961]
[1749475421136,6.4408,155.17,155.16,0.04357961]
[1749475421335,9.68554912,155.17,155.16,0.04357961]
[1749475421641,6.4408,155.17,155.16,0.04357961]
[1749475426742,9.68554912,155.17,155.16,0.04357961]
[1749475428441,6.4408,155.17,155.16,0.04357961]
[1749475436446,12.4185008,155.18,155.16,3.28832873]
[1749475436639,6.4406,155.18,155.16,9.72932873]
[1749475437043,6.4406,155.18,155.17,3.24474912]
[1749475437747,6.48809157,155.19,155.17,3.24474912]
[1749475441252,6.48809157,155.19,155.17,9.68544912]
[1749475444146,6.4403,155.18,155.16,3.28832873]
[1749475445652,6.4403,155.18,155.16,9.72942873]
[1749475446453,6.48809157,155.19,155.16,3.28832873]
[1749475446752,0.04799157,155.19,155.16,3.28832873]
[1749475447650,6.4405,155.18,155.16,0.04357961]
[1749475447850,6.4405,155.18,155.17,3.24474912]
[1749475457767,6.4405,155.18,155.16,6.48457961]
[1749475458062,6.4405,155.18,155.17,3.24474912]
[1749475459362,0.04799157,155.19,155.17,3.24474912]
[1749475459563,0.04799157,155.19,155.18,3.24474912]
[1749475465173,0.04799157,155.19,155.18,9.68504912]
[1749475466771,6.48789157,155.19,155.18,3.24474912]
[1749475468478,3.29274069,155.19,155.16,0.04357961]
[1749475468769,3.24474912,155.17,155.16,0.04357961]
[1749475468961,3.24474912,155.17,155.13,31.8]
[1749475469164,6.442,155.14,155.13,31.8]
[1749475475571,6.4424,155.13,155.12,0.04649147]
[1749475475775,9.68714912,155.13,155.12,0.04649147]
[1749475475971,3.24474912,155.13,155.1,31.8]
[1749475476167,6.4445,155.08,155.07,31.8]
[1749475476574,3.24474912,155.09,155.05,3.24474912]
[1749475476873,6.4451,155.07,155.04,41.49064912]
[1749475477574,6.4454,155.06,155.04,41.49064912]
[1749475478077,6.4454,155.06,155.04,35.04474912]
[1749475478578,6.4457,155.05,155.04,31.8]
[1749475478771,6.4457,155.05,155.04,35.04474912]
[1749475479276,6.4457,155.05,155.04,31.8]
[1749475479875,6.4455,155.06,155.04,31.8]
[1749475480076,0.04109286,155.09,155.04,31.8]
[1749475480276,6.4457,155.05,155.04,31.8]
[1749475485389,6.4463,155.04,155.01,409.3872]
[1749475485582,6.48797733,155.04,155.01,409.3872]
[1749475485789,0.04167733,155.04,155.01,402.94]
[1749475485990,0.04167733,155.04,155.01,31.82]